Workbook

Sheet Custos da reforma do banheiro
B1: Planilha de custos da reforma do banheiro
B2: OBSERVAÇÃO: as colunas de diferença na tabela mostram se os valores reais excedem os valores estimados. Os números em vermelho mostram valores excedidos (negativos) e os números em preto mostram valores inferiores (positivos).
E3: Custo discriminado (R$) | H3: Custo total (R$)
B4: Área | C4: Itens | D4: Quantidade | E4: Valor estimado | F4: Valor real | G4: Diferença | H4: Valor estimado | I4: Valor real | J4: Diferença
B5: Banheira/Chuveiro | C5: Banheira com tubulação em ferro fundido de 5" padrão | D5: 1 | E5: R$ 250.00 | F5: =RANDBETWEEN(E5+2,E5+20) -> R$ 258.00 | G5: =IFERROR(Custos[[#This Row],[Valor estimado]]-Custos[[#This Row],[Valor real]], "") -> -R$ 8.00 | H5: =IFERROR(Custos[[#This Row],[Quantidade]]*Custos[[#This Row],[Valor estimado]], "") -> R$ 250.00 | I5: =IFERROR(Custos[[#This Row],[Quantidade]]*Custos[[#This Row],[Valor real]], "") -> R$ 258.00 | J5: =IFERROR(Custos[[#This Row],[Valor estimado ]]-Custos[[#This Row],[Valor real ]], "") -> -R$ 8.00
B6: Banheira/Chuveiro | C6: Portas de chuveiro articuladas padrão | D6: 1 | E6: R$ 200.00 | F6: R$ 206.00 | G6: =IFERROR(Custos[[#This Row],[Valor estimado]]-Custos[[#This Row],[Valor real]], "") -> -R$ 6.00 | H6: =IFERROR(Custos[[#This Row],[Quantidade]]*Custos[[#This Row],[Valor estimado]], "") -> R$ 200.00 | I6: =IFERROR(Custos[[#This Row],[Quantidade]]*Custos[[#This Row],[Valor real]], "") -> R$ 206.00 | J6: =IFERROR(Custos[[#This Row],[Valor estimado ]]-Custos[[#This Row],[Valor real ]], "") -> -R$ 6.00
B7: Banheira/Chuveiro | C7: Chuveiro padrão | D7: 1 | E7: R$ 50.00 | F7: R$ 67.00 | G7: =IFERROR(Custos[[#This Row],[Valor estimado]]-Custos[[#This Row],[Valor real]], "") -> -R$ 17.00 | H7: =IFERROR(Custos[[#This Row],[Quantidade]]*Custos[[#This Row],[Valor estimado]], "") -> R$ 50.00 | I7: =IFERROR(Custos[[#This Row],[Quantidade]]*Custos[[#This Row],[Valor real]], "") -> R$ 67.00 | J7: =IFERROR(Custos[[#This Row],[Valor estimado ]]-Custos[[#This Row],[Valor real ]], "") -> -R$ 17.00
B8: Banheira/Chuveiro | C8: Revestimento de banheira padrão | D8: 1 | E8: R$ 200.00 | F8: R$ 213.00 | G8: =IFERROR(Custos[[#This Row],[Valor estimado]]-Custos[[#This Row],[Valor real]], "") -> -R$ 13.00 | H8: =IFERROR(Custos[[#This Row],[Quantidade]]*Custos[[#This Row],[Valor estimado]], "") -> R$ 200.00 | I8: =IFERROR(Custos[[#This Row],[Quantidade]]*Custos[[#This Row],[Valor real]], "") -> R$ 213.00 | J8: =IFERROR(Custos[[#This Row],[Valor estimado ]]-Custos[[#This Row],[Valor real ]], "") -> -R$ 13.00
B9: Armários | C9: Armário de medicamentos de 60 cm luxo | D9: 1 | E9: R$ 200.00 | F9: R$ 215.00 | G9: =IFERROR(Custos[[#This Row],[Valor estimado]]-Custos[[#This Row],[Valor real]], "") -> -R$ 15.00 | H9: =IFERROR(Custos[[#This Row],[Quantidade]]*Custos[[#This Row],[Valor estimado]], "") -> R$ 200.00 | I9: =IFERROR(Custos[[#This Row],[Quantidade]]*Custos[[#This Row],[Valor real]], "") -> R$ 215.00 | J9: =IFERROR(Custos[[#This Row],[Valor estimado ]]-Custos[[#This Row],[Valor real ]], "") -> -R$ 15.00
B10: Armários | C10: Penteadeira modular de 70 cm padrão | D10: 2 | E10: R$ 100.00 | F10: R$ 107.00 | G10: =IFERROR(Custos[[#This Row],[Valor estimado]]-Custos[[#This Row],[Valor real]], "") -> -R$ 7.00 | H10: =IFERROR(Custos[[#This Row],[Quantidade]]*Custos[[#This Row],[Valor estimado]], "") -> R$ 200.00 | I10: =IFERROR(Custos[[#This Row],[Quantidade]]*Custos[[#This Row],[Valor real]], "") -> R$ 214.00 | J10: =IFERROR(Custos[[#This Row],[Valor estimado ]]-Custos[[#This Row],[Valor real ]], "") -> -R$ 14.00
B11: Bancadas | C11: Azulejo de luxo em cerâmica (qtd. em metros lineares) | D11: 5 | E11: R$ 22.50 | F11: R$ 32.00 | G11: =IFERROR(Custos[[#This Row],[Valor estimado]]-Custos[[#This Row],[Valor real]], "") -> -R$ 9.50 | H11: =IFERROR(Custos[[#This Row],[Quantidade]]*Custos[[#This Row],[Valor estimado]], "") -> R$ 112.50 | I11: =IFERROR(Custos[[#This Row],[Quantidade]]*Custos[[#This Row],[Valor real]], "") -> R$ 160.00 | J11: =IFERROR(Custos[[#This Row],[Valor estimado ]]-Custos[[#This Row],[Valor real ]], "") -> -R$ 47.50
B12: Torneiras | C12: Torneira para banheira padrão | D12: 1 | E12: R$ 90.00 | F12: R$ 92.00 | G12: =IFERROR(Custos[[#This Row],[Valor estimado]]-Custos[[#This Row],[Valor real]], "") -> -R$ 2.00 | H12: =IFERROR(Custos[[#This Row],[Quantidade]]*Custos[[#This Row],[Valor estimado]], "") -> R$ 90.00 | I12: =IFERROR(Custos[[#This Row],[Quantidade]]*Custos[[#This Row],[Valor real]], "") -> R$ 92.00 | J12: =IFERROR(Custos[[#This Row],[Valor estimado ]]-Custos[[#This Row],[Valor real ]], "") -> -R$ 2.00
B13: Torneiras | C13: Torneira para chuveiro em peça única padrão | D13: 1 | E13: R$ 115.00 | F13: R$ 122.00 | G13: =IFERROR(Custos[[#This Row],[Valor estimado]]-Custos[[#This Row],[Valor real]], "") -> -R$ 7.00 | H13: =IFERROR(Custos[[#This Row],[Quantidade]]*Custos[[#This Row],[Valor estimado]], "") -> R$ 115.00 | I13: =IFERROR(Custos[[#This Row],[Quantidade]]*Custos[[#This Row],[Valor real]], "") -> R$ 122.00 | J13: =IFERROR(Custos[[#This Row],[Valor estimado ]]-Custos[[#This Row],[Valor real ]], "") -> -R$ 7.00
B14: Torneiras | C14: Torneira para pia padrão | D14: 1 | E14: R$ 95.00 | F14: R$ 109.00 | G14: =IFERROR(Custos[[#This Row],[Valor estimado]]-Custos[[#This Row],[Valor real]], "") -> -R$ 14.00 | H14: =IFERROR(Custos[[#This Row],[Quantidade]]*Custos[[#This Row],[Valor estimado]], "") -> R$ 95.00 | I14: =IFERROR(Custos[[#This Row],[Quantidade]]*Custos[[#This Row],[Valor real]], "") -> R$ 109.00 | J14: =IFERROR(Custos[[#This Row],[Valor estimado ]]-Custos[[#This Row],[Valor real ]], "") -> -R$ 14.00
B15: Colocação do piso | C15: Azulejo em cerâmica padrão (qtd. em metros quadrados) | D15: 35 | E15: R$ 12.00 | F15: R$ 20.00 | G15: =IFERROR(Custos[[#This Row],[Valor estimado]]-Custos[[#This Row],[Valor real]], "") -> -R$ 8.00 | H15: =IFERROR(Custos[[#This Row],[Quantidade]]*Custos[[#This Row],[Valor estimado]], "") -> R$ 420.00 | I15: =IFERROR(Custos[[#This Row],[Quantidade]]*Custos[[#This Row],[Valor real]], "") -> R$ 700.00 | J15: =IFERROR(Custos[[#This Row],[Valor estimado ]]-Custos[[#This Row],[Valor real ]], "") -> -R$ 280.00
B16: Ferragens | C16: Suporte para toalha padrão | D16: 2 | E16: R$ 15.00 | F16: R$ 22.00 | G16: =IFERROR(Custos[[#This Row],[Valor estimado]]-Custos[[#This Row],[Valor real]], "") -> -R$ 7.00 | H16: =IFERROR(Custos[[#This Row],[Quantidade]]*Custos[[#This Row],[Valor estimado]], "") -> R$ 30.00 | I16: =IFERROR(Custos[[#This Row],[Quantidade]]*Custos[[#This Row],[Valor real]], "") -> R$ 44.00 | J16: =IFERROR(Custos[[#This Row],[Valor estimado ]]-Custos[[#This Row],[Valor real ]], "") -> -R$ 14.00
B17: Ferragens | C17: Porta-papel higiênico | D17: 1 | E17: R$ 10.00 | F17: R$ 26.00 | G17: =IFERROR(Custos[[#This Row],[Valor estimado]]-Custos[[#This Row],[Valor real]], "") -> -R$ 16.00 | H17: =IFERROR(Custos[[#This Row],[Quantidade]]*Custos[[#This Row],[Valor estimado]], "") -> R$ 10.00 | I17: =IFERROR(Custos[[#This Row],[Quantidade]]*Custos[[#This Row],[Valor real]], "") -> R$ 26.00 | J17: =IFERROR(Custos[[#This Row],[Valor estimado ]]-Custos[[#This Row],[Valor real ]], "") -> -R$ 16.00
B18: Iluminação | C18: Luzes embutidas padrão | D18: 4 | E18: R$ 25.00 | F18: R$ 35.00 | G18: =IFERROR(Custos[[#This Row],[Valor estimado]]-Custos[[#This Row],[Valor real]], "") -> -R$ 10.00 | H18: =IFERROR(Custos[[#This Row],[Quantidade]]*Custos[[#This Row],[Valor estimado]], "") -> R$ 100.00 | I18: =IFERROR(Custos[[#This Row],[Quantidade]]*Custos[[#This Row],[Valor real]], "") -> R$ 140.00 | J18: =IFERROR(Custos[[#This Row],[Valor estimado ]]-Custos[[#This Row],[Valor real ]], "") -> -R$ 40.00
B19: Pias | C19: Vaso sanitário padrão | D19: 2 | E19: R$ 60.00 | F19: R$ 66.00 | G19: =IFERROR(Custos[[#This Row],[Valor estimado]]-Custos[[#This Row],[Valor real]], "") -> -R$ 6.00 | H19: =IFERROR(Custos[[#This Row],[Quantidade]]*Custos[[#This Row],[Valor estimado]], "") -> R$ 120.00 | I19: =IFERROR(Custos[[#This Row],[Quantidade]]*Custos[[#This Row],[Valor real]], "") -> R$ 132.00 | J19: =IFERROR(Custos[[#This Row],[Valor estimado ]]-Custos[[#This Row],[Valor real ]], "") -> -R$ 12.00
B20: Outros | D20: 1 | E20: R$ 20.00 | F20: R$ 23.00 | G20: =IFERROR(Custos[[#This Row],[Valor estimado]]-Custos[[#This Row],[Valor real]], "") -> -R$ 3.00 | H20: =IFERROR(Custos[[#This Row],[Quantidade]]*Custos[[#This Row],[Valor estimado]], "") -> R$ 20.00 | I20: =IFERROR(Custos[[#This Row],[Quantidade]]*Custos[[#This Row],[Valor real]], "") -> R$ 23.00 | J20: =IFERROR(Custos[[#This Row],[Valor estimado ]]-Custos[[#This Row],[Valor real ]], "") -> -R$ 3.00
B21: Subtotal | E21: =SUBTOTAL(109,Custos[Valor estimado]) -> R$ 1,464.50 | F21: =SUBTOTAL(109,Custos[Valor real]) -> R$ 1,613.00 | G21: =SUBTOTAL(109,Custos[Diferença]) -> -R$ 148.50 | H21: =SUBTOTAL(109,Custos[[Valor estimado ]]) -> R$ 2,212.50 | I21: =SUBTOTAL(109,Custos[[Valor real ]]) -> R$ 2,721.00 | J21: =SUBTOTAL(109,Custos[[Diferença ]]) -> -R$ 508.50
B22: Custos inesperados (mais 30% estimado) | E22: =IFERROR(Custos[[#Totals],[Valor estimado]]*0.3, "") -> R$ 439.35 | H22: =IFERROR(Custos[[#Totals],[Valor estimado ]]*0.3, "") -> R$ 663.75
B23: Custos totais | E23: =IFERROR(SUM(E21:E21), "") -> R$ 1,464.50 | H23: =IFERROR(SUM(Custos[[#Totals],[Valor estimado ]],Excedente), "") -> R$ 2,876.25
